bitfinex/quotes_BTCUSD_20250124
["timestamp","ask_amount","ask_price","bid_price","bid_amount"]
[1737731448225,0.54114051,105810.0,105800.0,0.47259]
[1737731449636,0.54114051,105810.0,105800.0,0.4727319]
[1737731450205,0.56041339,105810.0,105800.0,0.4727319]
[1737731452019,0.01684365,105810.0,105800.0,0.6145079]
[1737731452222,0.15860665,105810.0,105800.0,0.6145079]
[1737731452466,0.15860665,105810.0,105800.0,0.4727319]
[1737731452788,0.15860665,105810.0,105800.0,0.6145079]
[1737731453212,0.01684365,105810.0,105800.0,0.6145079]
[1737731453816,0.01684365,105810.0,105800.0,0.63446057]
[1737731454630,0.01684365,105810.0,105800.0,0.73180786]
[1737731454827,0.01684365,105810.0,105800.0,1.03280786]
[1737731455059,0.01684365,105810.0,105800.0,0.98985519]
[1737731455671,0.01684365,105810.0,105800.0,1.00980786]
[1737731456934,0.01684365,105810.0,105800.0,0.98985519]
[1737731457329,0.01684365,105810.0,105800.0,1.00980786]
[1737731457735,0.01684365,105810.0,105800.0,0.98985519]
[1737731458166,0.01684365,105810.0,105800.0,0.76246057]
[1737731458387,0.01684365,105810.0,105800.0,0.71406057]
[1737731459523,0.01684365,105810.0,105800.0,0.4727319]
[1737731459739,0.25595394,105810.0,105800.0,0.6145079]
[1737731459944,0.25595394,105810.0,105800.0,0.4727319]
[1737731460151,0.141763,105810.0,105800.0,0.4727319]
[1737731460600,0.38911029,105810.0,105800.0,0.4727319]
[1737731461231,0.292061,105810.0,105800.0,0.4727319]
[1737731461655,0.38940829,105810.0,105800.0,0.4727319]
[1737731462292,0.39940829,105810.0,105800.0,0.4727319]
[1737731462504,0.47800829,105810.0,105800.0,0.4727319]
[1737731463334,0.48739338,105810.0,105800.0,0.4727319]
[1737731463534,0.54764147,105810.0,105800.0,0.4727319]
[1737731463767,0.48739338,105810.0,105800.0,0.4727319]
[1737731464814,0.53509338,105810.0,105800.0,0.4727319]
[1737731465447,0.54809338,105810.0,105800.0,0.11906452]
[1737731465735,0.141857,105740.0,105730.0,0.08371251]
[1737731465946,0.38920429,105740.0,105730.0,0.08371251]
[1737731467222,0.38920429,105740.0,105730.0,0.08420502]
[1737731468745,0.38920429,105740.0,105730.0,0.00049251]
[1737731470083,0.39856086,105740.0,105730.0,0.00049251]
[1737731471107,0.15059817,105730.0,105720.0,0.0002843]
[1737731471327,0.38981546,105730.0,105720.0,0.00043202]
[1737731471901,0.15059817,105730.0,105720.0,0.14231602]
[1737731472122,0.29246817,105730.0,105720.0,0.00043202]
[1737731472692,0.38981546,105730.0,105720.0,0.00043202]
[1737731475207,0.00059817,105730.0,105720.0,0.14231602]
[1737731475414,0.14246817,105730.0,105720.0,0.14231602]
[1737731476049,0.00059817,105730.0,105720.0,0.14231602]
[1737731476403,0.14246817,105730.0,105720.0,0.14231602]
[1737731476835,0.23981546,105730.0,105720.0,0.00043202]
[1737731477050,0.38981546,105730.0,105720.0,0.00043202]
[1737731477462,1.88981546,105730.0,105720.0,0.00043202]
[1737731479083,1.98541546,105730.0,105720.0,0.00043202]
[1737731479512,0.48541546,105730.0,105720.0,0.00043202]
[1737731479729,0.58276275,105730.0,105720.0,0.00043202]
[1737731479943,0.59544275,105730.0,105720.0,0.00043202]
[1737731480159,0.49809546,105730.0,105720.0,0.00043202]
[1737731480306,0.46184646,105730.0,105720.0,0.00043202]
[1737731480487,0.45184646,105730.0,105720.0,0.00043202]
[1737731480932,0.46184646,105730.0,105720.0,0.00043202]
[1737731481750,0.45184646,105730.0,105720.0,0.00043202]
[1737731483447,0.40274467,105730.0,105720.0,0.00043202]
[1737731483637,0.39006467,105730.0,105720.0,0.00043202]
[1737731483837,0.24006467,105730.0,105720.0,0.00043202]
[1737731484098,0.14271738,105730.0,105720.0,0.00043202]
[1737731484311,0.24006467,105730.0,105720.0,0.00043202]
[1737731484530,0.40006467,105730.0,105720.0,0.00043202]
[1737731484974,0.141897,105710.0,105700.0,0.000142]
[1737731485197,1.641911,105700.0,105690.0,0.0001416]
[1737731485409,1.73925829,105700.0,105690.0,0.0001416]
[1737731485642,0.141951,105670.0,105660.0,0.0001417]
[1737731485845,0.38929829,105670.0,105660.0,0.0006347]
[1737731487532,0.39929829,105670.0,105660.0,0.0006347]
[1737731487791,0.38929829,105670.0,105660.0,0.0006347]
[1737731489652,0.39929829,105670.0,105660.0,0.0006347]
[1737731489855,0.45464363,105670.0,105660.0,0.0006347]
[1737731490055,0.39929829,105670.0,105660.0,0.0006347]
[1737731490466,0.141991,105640.0,105630.0,0.076]
[1737731490640,0.142005,105630.0,105620.0,0.0001416]
[1737731490817,0.38935229,105630.0,105620.0,0.0001416]
[1737731491018,0.47715452,105630.0,105620.0,0.0001416]
[1737731491259,0.39935229,105630.0,105620.0,0.0001416]
[1737731491708,0.42459177,105630.0,105620.0,0.0001416]
[1737731491919,0.42459177,105630.0,105620.0,0.00028161]
[1737731492335,0.41459177,105630.0,105620.0,0.00028161]
[1737731492541,0.43387646,105630.0,105620.0,0.00028161]
[1737731493374,0.53122375,105630.0,105620.0,0.00028161]
[1737731493582,0.43387646,105630.0,105620.0,0.00028161]
[1737731494400,0.40863698,105630.0,105620.0,0.00028161]
[1737731494833,0.42747258,105630.0,105620.0,0.00028161]
[1737731495121,1.92747258,105630.0,105620.0,0.00028161]
[1737731495492,0.42747258,105630.0,105620.0,0.00028161]
[1737731495701,0.52481987,105630.0,105620.0,0.00028161]
[1737731496233,0.42747258,105630.0,105620.0,0.00028161]
[1737731497084,0.16,105620.0,105610.0,0.0001417]
[1737731497467,0.40200529,105620.0,105610.0,0.0001417]
[1737731498124,0.41200529,105620.0,105610.0,0.0001417]
[1737731498333,0.39936529,105620.0,105610.0,0.0001417]
[1737731498539,0.41200529,105620.0,105610.0,0.0001417]
[1737731498955,0.38936529,105620.0,105610.0,0.0001417]
[1737731499163,0.40200529,105620.0,105610.0,0.0001417]
[1737731499997,0.25200529,105620.0,105610.0,0.0001417]
[1737731500419,0.40200529,105620.0,105610.0,0.0001417]
[1737731503680,0.38936529,105620.0,105610.0,0.0001417]
[1737731504179,0.38936529,105620.0,105600.0,0.0001422]
[1737731504180,0.302032,105610.0,105600.0,0.0001422]
[1737731504391,1.89937929,105610.0,105600.0,0.0001422]
[1737731504746,1.88937929,105610.0,105600.0,0.0001422]
[1737731505131,0.38937929,105610.0,105600.0,0.0001422]
[1737731506138,0.39867487,105610.0,105600.0,0.0001422]
[1737731509394,0.30132758,105610.0,105600.0,0.1421872]
[1737731509638,0.30132758,105610.0,105600.0,0.0001422]
[1737731509818,0.331396,105620.0,105610.0,0.0819]
[1737731510026,0.481396,105620.0,105610.0,0.0819]
[1737731510327,0.57874329,105620.0,105610.0,0.0819]
[1737731515091,0.481396,105620.0,105610.0,0.223932]
[1737731515300,0.34083369,105630.0,105610.0,0.223932]
[1737731515502,0.520606,105650.0,105630.0,0.458536]
[1737731515708,0.10683168,105650.0,105640.0,0.141991]
[1737731515921,0.10683168,105650.0,105630.0,0.647867]
[1737731515922,0.0096319,105650.0,105630.0,0.647867]
[1737731516128,0.0096319,105650.0,105630.0,0.458536]
[1737731516129,0.3409299,105650.0,105630.0,0.458536]
[1737731516331,0.5302439,105650.0,105630.0,0.458534]
[1737731516581,0.3409299,105650.0,105640.0,0.141991]
[1737731516989,0.141991,105640.0,105630.0,0.269205]
[1737731517421,0.62759519,105650.0,105630.0,0.45854]
[1737731517633,0.1516209,105650.0,105640.0,0.141991]
[1737731517845,0.3409279,105650.0,105630.0,0.647862]
[1737731518054,0.00014751,105650.0,105640.0,0.224091]
[1737731518271,0.00014751,105650.0,105640.0,0.34139096]
[1737731518485,0.00014751,105650.0,105640.0,0.36643829]
[1737731518689,0.00014751,105650.0,105640.0,0.38639096]
[1737731518919,0.00044593,105650.0,105640.0,0.36643829]
[1737731519336,0.00044593,105650.0,105640.0,0.38639096]
[1737731520373,0.00044593,105650.0,105640.0,0.40939096]
[1737731520629,0.00029842,105660.0,105650.0,0.26703067]
[1737731520842,0.00079102,105660.0,105650.0,0.40937796]
[1737731521060,0.00079102,105660.0,105650.0,0.269078]
[1737731521926,0.14275502,105660.0,105650.0,0.1271]
[1737731522128,0.14275502,105660.0,105650.0,0.269078]
[1737731522549,0.14275502,105660.0,105650.0,0.1271]
[1737731523032,0.38999693,105660.0,105650.0,0.0821]
[1737731523241,0.15068564,105660.0,105650.0,0.224078]
[1737731523445,0.00068564,105660.0,105650.0,0.224078]
[1737731525128,0.00068564,105660.0,105650.0,0.39082529]
[1737731525335,0.00068564,105660.0,105650.0,0.41077796]
[1737731525761,0.09088,105690.0,105680.0,0.141937]
[1737731525967,0.09088,105690.0,105680.0,0.222637]
[1737731525968,0.09102769,105690.0,105680.0,0.222637]
[1737731526649,0.23295169,105690.0,105680.0,0.222637]
[1737731527621,0.09102769,105690.0,105680.0,0.222637]
[1737731527989,0.23295169,105690.0,105680.0,0.222637]
[1737731528192,0.23295169,105690.0,105680.0,0.0807]
[1737731529030,0.23295169,105690.0,105680.0,0.222637]
[1737731529237,0.09102769,105690.0,105680.0,0.222637]
[1737731529809,0.00014769,105690.0,105680.0,0.269237]
[1737731530639,0.14207169,105690.0,105680.0,0.269237]
[1737731530957,0.00014769,105690.0,105680.0,0.269237]
[1737731536367,0.00014769,105690.0,105680.0,0.28918967]
[1737731536565,0.00014769,105690.0,105680.0,0.38653696]
[1737731536987,0.00014769,105690.0,105680.0,0.40953696]
[1737731538076,0.00014769,105690.0,105680.0,0.38653696]
[1737731539245,0.00014769,105690.0,105680.0,0.40953696]
[1737731543332,0.00044611,105690.0,105680.0,0.40953696]
[1737731544815,0.00084738,105730.0,105720.0,0.141884]
[1737731545008,0.00099504,105730.0,105720.0,0.26012969]
[1737731545232,0.00099504,105730.0,105720.0,0.141884]
[1737731545441,0.33203404,105730.0,105710.0,0.451668]
[1737731545646,0.33203304,105730.0,105710.0,0.640853]
[1737731546035,0.33203304,105730.0,105720.0,0.141884]
[1737731546036,0.00099504,105730.0,105720.0,0.141884]
[1737731546330,0.00099504,105730.0,105720.0,0.24017712]
[1737731546537,0.00099504,105730.0,105720.0,0.25918396]
[1737731546768,0.00099504,105730.0,105720.0,0.28218396]
[1737731546900,0.00099504,105730.0,105720.0,0.35918396]
[1737731547943,0.00099504,105730.0,105720.0,0.36888375]
[1737731548890,0.00099504,105730.0,105720.0,0.57568375]
[1737731549450,0.00099504,105730.0,105720.0,1.03861375]
[1737731552344,0.00099504,105730.0,105720.0,1.04861375]
[1737731552745,0.00099504,105730.0,105720.0,1.05861375]
[1737731553387,0.00099504,105730.0,105720.0,1.04861375]
[1737731554373,0.00099504,105730.0,105720.0,0.87561375]
[1737731554582,0.00099504,105730.0,105720.0,0.86561375]
[1737731554782,0.00099504,105730.0,105720.0,0.84566108]
[1737731555008,0.00099504,105730.0,105720.0,0.691814]
[1737731555214,0.00099504,105730.0,105720.0,0.71176667]
[1737731555420,0.14286504,105730.0,105720.0,0.614814]
[1737731555566,0.00099504,105730.0,105720.0,0.614814]
[1737731556296,0.14286504,105730.0,105720.0,0.614814]
[1737731556494,0.00099504,105730.0,105720.0,0.614814]
[1737731556929,0.29286504,105730.0,105720.0,0.47293]
[1737731557646,0.39021233,105730.0,105720.0,0.47293]
[1737731557836,0.40277233,105730.0,105720.0,0.47293]
[1737731560872,0.53781962,105730.0,105720.0,0.47293]
[1737731561108,0.45047233,105730.0,105720.0,0.47293]
[1737731561309,0.45361615,105730.0,105720.0,0.434724]
[1737731561648,0.45361615,105730.0,105680.0,0.598214]
[1737731561649,0.33114,105700.0,105680.0,0.598214]
[1737731561853,0.33114,105700.0,105670.0,0.520452]
[1737731561854,0.141924,105690.0,105670.0,0.520452]
[1737731562063,0.33121,105680.0,105660.0,0.46646008]
[1737731562266,0.141951,105670.0,105660.0,0.0001421]
[1737731562472,0.14519398,105670.0,105660.0,0.0001421]
[1737731563172,0.14519398,105670.0,105660.0,0.00028979]
[1737731564784,0.00324298,105670.0,105660.0,0.14225379]
[1737731565321,0.14519398,105670.0,105660.0,0.14225379]
[1737731565780,0.14519398,105670.0,105660.0,0.00028979]
[1737731567577,0.14489398,105670.0,105660.0,0.00028979]
[1737731567981,0.14489398,105670.0,105660.0,0.14225379]
[1737731568201,0.00294298,105670.0,105660.0,0.14225379]
[1737731568414,0.00294298,105670.0,105660.0,0.14320018]
[1737731568619,0.01256,105690.0,105660.0,0.41238118]
[1737731568823,0.52360242,105680.0,105660.0,0.41143179]
[1737731569035,0.141951,105670.0,105660.0,0.22215379]
[1737731569241,0.0031264,105670.0,105660.0,0.22215379]
[1737731569442,0.0031264,105670.0,105660.0,0.41143979]
[1737731570901,0.1450774,105670.0,105660.0,0.00028979]
[1737731572137,0.39242469,105670.0,105660.0,0.00028979]
[1737731572764,0.40242469,105670.0,105660.0,0.00028979]
[1737731573403,0.39242469,105670.0,105660.0,0.00028979]
[1737731573815,0.40172234,105670.0,105660.0,0.00028979]
[1737731574442,0.0031264,105670.0,105660.0,0.14225379]
[1737731574653,0.0031264,105670.0,105660.0,0.21935379]
[1737731575280,0.0031264,105670.0,105660.0,0.23930646]
[1737731575485,0.141939,105680.0,105670.0,0.141951]
[1737731576307,0.141939,105680.0,105660.0,0.80713746]
[1737731576308,0.331194,105680.0,105660.0,0.80713746]
[1737731576509,0.33431148,105680.0,105660.0,0.59790279]
[1737731576808,0.52357948,105680.0,105660.0,0.40862779]
[1737731577272,0.52357948,105680.0,105660.0,0.59791379]
[1737731577482,0.52357948,105680.0,105660.0,0.78719179]
[1737731577611,0.52357948,105680.0,105660.0,0.21935379]
[1737731577819,0.52461849,105680.0,105660.0,0.40862779]
[1737731578020,0.15415649,105680.0,105670.0,0.141951]
[1737731578233,0.00415649,105680.0,105670.0,0.141951]
[1737731579222,0.14609349,105680.0,105670.0,0.141951]
[1737731579468,0.52461049,105680.0,105660.0,0.42857946]
[1737731579667,0.5249087,105680.0,105660.0,0.42857946]
[1737731579893,0.5249087,105680.0,105660.0,0.61786446]
[1737731580187,0.1463917,105680.0,105670.0,0.141951]
[1737731580391,0.3356437,105680.0,105670.0,0.141951]
[1737731580594,0.3829707,105680.0,105660.0,0.23930646]
[1737731580780,0.5249167,105680.0,105660.0,0.42858246]
[1737731580975,0.141951,105670.0,105660.0,0.21935379]
[1737731581203,0.14611056,105670.0,105660.0,0.09734246]
[1737731581409,0.14611056,105670.0,105660.0,0.23930646]
[1737731581620,0.14611056,105670.0,105660.0,0.21935379]
[1737731581825,0.14611056,105670.0,105660.0,0.07738979]
[1737731582036,0.14611056,105670.0,105660.0,0.00028979]
[1737731582237,0.14611056,105670.0,105660.0,0.14225379]
[1737731582889,0.14611056,105670.0,105660.0,0.00028979]
[1737731583387,0.46487683,105670.0,105660.0,0.00028979]
[1737731583791,0.47487683,105670.0,105660.0,0.00028979]
[1737731584111,0.40345785,105670.0,105660.0,0.00028979]
[1737731584852,0.39345785,105670.0,105660.0,0.00028979]
[1737731585061,0.40309837,105670.0,105660.0,0.00028979]
[1737731585271,1.90309837,105670.0,105660.0,0.00028979]
[1737731585593,0.40309837,105670.0,105660.0,0.00028979]
[1737731588097,0.44079837,105670.0,105660.0,0.00028979]
[1737731588269,0.48819837,105670.0,105660.0,0.00028979]
[1737731588876,0.49819837,105670.0,105660.0,0.00028979]
[1737731590277,0.35624737,105670.0,105650.0,0.00010811]
[1737731590482,0.26867607,105660.0,105650.0,0.00010811]
[1737731590693,0.23931129,105660.0,105650.0,0.00010811]
[1737731593501,0.24931129,105660.0,105650.0,0.00010811]
[1737731593704,1.74931129,105660.0,105650.0,0.00010811]
[1737731594798,1.76826357,105660.0,105650.0,0.00010811]
[1737731595022,2.01561086,105660.0,105650.0,0.00010811]
[1737731595225,2.01561086,105660.0,105610.0,0.0813]
[1737731595226,0.142018,105620.0,105610.0,0.0813]
[1737731595431,0.23936529,105620.0,105610.0,0.0813]
[1737731596621,0.142032,105610.0,105600.0,0.0001422]
[1737731597686,0.38937929,105610.0,105600.0,0.0001422]
[1737731601397,0.39898597,105610.0,105600.0,0.0001422]
[1737731602088,0.40898597,105610.0,105600.0,0.0001422]
[1737731602216,0.44438597,105610.0,105600.0,0.0001422]
[1737731602643,0.46376923,105610.0,105600.0,0.0001422]
[1737731604114,0.302045,105600.0,105590.0,0.00010171]
[1737731604378,0.38939229,105600.0,105590.0,7.1e-07]
[1737731604657,0.41219229,105600.0,105590.0,7.1e-07]
[1737731604824,0.44989229,105600.0,105590.0,7.1e-07]
[1737731605406,0.01,105580.0,105550.0,0.0830417]
[1737731605672,0.142099,105560.0,105550.0,0.0830417]
[1737731605877,0.23944629,105560.0,105550.0,0.0830417]
[1737731606331,0.38944629,105560.0,105550.0,0.0830417]
[1737731606725,0.38944629,105560.0,105550.0,0.0835343]
[1737731609638,0.292099,105560.0,105550.0,0.0835343]
[1737731609851,0.142099,105560.0,105550.0,0.0835343]
[1737731610493,0.14524088,105560.0,105550.0,0.0835343]
[1737731610701,0.142099,105560.0,105550.0,0.0835343]
[1737731610913,0.142099,105560.0,105550.0,0.2256443]
[1737731611126,0.142099,105560.0,105550.0,0.0835343]
[1737731611334,0.15180594,105560.0,105550.0,0.2256463]
[1737731613328,0.15180594,105560.0,105550.0,0.0835343]
[1737731614181,0.15180594,105560.0,105550.0,0.2256463]
[1737731614591,0.15180594,105560.0,105550.0,0.0835343]
[1737731615650,0.142096,105570.0,105550.0,0.60555272]
[1737731615884,0.481509,105580.0,105570.0,0.0803]
[1737731616109,0.33177942,105590.0,105570.0,0.411825]
[1737731616321,0.33177942,105590.0,105580.0,0.142072]
[1737731616738,0.33177942,105590.0,105570.0,0.66721667]
[1737731616953,0.34129843,105590.0,105580.0,0.142072]
[1737731617443,0.15188643,105590.0,105580.0,0.142072]
[1737731617620,0.00029842,105590.0,105580.0,0.22561909]
[1737731617831,0.00029842,105590.0,105580.0,0.34197196]
[1737731618649,0.00029842,105590.0,105580.0,0.36497196]
[1737731618852,0.00029842,105590.0,105580.0,0.41417196]
[1737731619310,0.00029842,105590.0,105580.0,0.56417196]
[1737731619702,0.01248,105620.0,105610.0,0.24458467]
[1737731619911,0.09092,105640.0,105630.0,0.142005]
[1737731620204,0.232913,105640.0,105630.0,0.142005]
[1737731620357,0.611564,105640.0,105620.0,0.35130267]
[1737731620566,0.611566,105640.0,105620.0,0.35130267]
[1737731620952,0.00414804,105630.0,105620.0,0.20978727]
[1737731622567,0.00414804,105630.0,105620.0,0.30713456]
[1737731622799,0.00414804,105630.0,105620.0,0.38343456]
[1737731622972,0.00414804,105630.0,105620.0,0.40643456]
[1737731623174,0.00414804,105630.0,105620.0,0.55643456]
[1737731623374,0.00029821,105650.0,105640.0,0.23824367]
[1737731623609,0.00029821,105650.0,105640.0,0.40379096]
[1737731626240,0.00029821,105650.0,105640.0,0.38079096]
[1737731627179,0.00029821,105650.0,105640.0,0.28344367]
[1737731627981,0.00029821,105650.0,105640.0,0.38079096]
[1737731628836,0.00029821,105650.0,105640.0,0.28344367]
[1737731629193,0.14227621,105650.0,105640.0,0.0763]
[1737731629402,0.33132,105640.0,105620.0,0.6429086]
[1737731629631,1.5,105630.0,105620.0,0.47350427]
[1737731629829,1.5,105630.0,105620.0,0.4535516]
[1737731630084,1.5,105630.0,105620.0,0.47350427]
[1737731630311,0.6182645,105650.0,105630.0,0.331328]
[1737731630521,0.33160121,105650.0,105640.0,0.141991]
[1737731630736,0.00029821,105650.0,105640.0,0.141991]
[1737731630949,0.14227621,105650.0,105640.0,0.141991]
[1737731631159,0.14227621,105650.0,105640.0,0.16194367]
[1737731631366,0.00029821,105650.0,105640.0,0.16194367]
[1737731631568,0.00029821,105650.0,105640.0,0.16289016]
[1737731631982,0.14227621,105650.0,105640.0,0.16194367]
[1737731632499,0.14227621,105650.0,105640.0,0.01995267]
[1737731632717,0.00029821,105650.0,105620.0,0.33148827]
[1737731632922,0.00029821,105650.0,105620.0,0.14214527]
[1737731632923,0.142005,105630.0,105620.0,0.14214527]
[1737731633129,0.142005,105630.0,105620.0,0.0766926]
[1737731633334,0.292005,105630.0,105620.0,0.0004926]
[1737731634793,0.38935229,105630.0,105620.0,0.0004926]
[1737731636171,0.39901877,105630.0,105620.0,0.0004926]
[1737731637165,1.89901877,105630.0,105620.0,0.0004926]
[1737731640276,0.39901877,105630.0,105620.0,0.0004926]
[1737731642725,1.89901877,105630.0,105620.0,0.0004926]
[1737731643288,0.39901877,105630.0,105620.0,0.0004926]
[1737731643856,1.89901877,105630.0,105620.0,0.0004926]
[1737731644891,0.39901877,105630.0,105620.0,0.0004926]
[1737731645292,0.39901877,105630.0,105620.0,0.1425106]
[1737731645509,0.30167148,105630.0,105620.0,0.1425106]
[1737731645726,0.30167148,105630.0,105620.0,0.0004926]
[1737731645915,0.30167148,105630.0,105620.0,0.1425106]
[1737731646115,0.30167148,105630.0,105620.0,0.0004926]
[1737731647497,0.39901877,105630.0,105620.0,0.0004926]
[1737731649829,0.53974686,105630.0,105620.0,0.0004926]
[1737731650034,0.53974686,105630.0,105590.0,0.0001421]
[1737731650035,0.292045,105600.0,105590.0,0.0001421]
[1737731650250,0.38939229,105600.0,105590.0,0.00028961]
[1737731650975,0.292045,105600.0,105590.0,0.00028961]
[1737731651927,0.142045,105600.0,105590.0,0.33175061]
[1737731652106,0.142045,105600.0,105590.0,0.14234761]
[1737731652310,0.00312538,105600.0,105590.0,0.14234761]
[1737731652518,0.14517038,105600.0,105590.0,0.14234761]
[1737731653670,0.14517038,105600.0,105590.0,0.00028961]
[1737731653880,0.1545927,105600.0,105590.0,0.00028961]
[1737731654487,0.1545927,105600.0,105590.0,0.14234761]
[1737731654684,0.1545927,105600.0,105590.0,0.00028961]
[1737731655293,0.1545927,105600.0,105590.0,0.14234761]
[1737731655498,0.00312538,105600.0,105590.0,0.14234761]
[1737731655897,0.14517038,105600.0,105590.0,0.14234761]
[1737731656120,0.39251767,105600.0,105590.0,0.00028961]
[1737731659235,0.29517038,105600.0,105590.0,0.14234761]
[1737731659460,0.29517038,105600.0,105590.0,0.00028961]
[1737731659663,0.29517038,105600.0,105590.0,0.14234761]
[1737731659856,0.00312538,105600.0,105590.0,0.22424761]
[1737731660096,0.00312538,105600.0,105590.0,0.29150028]
[1737731660499,0.14517038,105600.0,105590.0,0.29150028]
[1737731660708,0.00312538,105600.0,105590.0,0.29150028]
[1737731660910,0.14517038,105600.0,105590.0,0.29150028]
[1737731661088,0.14517038,105600.0,105590.0,0.12948961]
[1737731661302,0.14517038,105600.0,105590.0,0.22424761]
[1737731661719,0.14517038,105600.0,105590.0,0.08218961]
[1737731662101,0.14517038,105600.0,105590.0,0.22424761]
[1737731662306,0.00312538,105600.0,105590.0,0.24420028]
[1737731662604,0.14517038,105600.0,105590.0,0.24420028]
[1737731663758,0.14517038,105600.0,105590.0,0.10214228]
[1737731663961,0.14517038,105600.0,105590.0,0.08218961]
[1737731664163,0.39251767,105600.0,105590.0,0.08218961]
[1737731664408,0.39251767,105600.0,105590.0,0.00028961]
[1737731664595,0.48986496,105600.0,105590.0,0.00028961]
[1737731664794,0.39251767,105600.0,105590.0,0.00028961]
[1737731666711,0.39378576,105600.0,105590.0,0.00028961]
[1737731667036,0.39268666,105600.0,105590.0,0.00028961]
[1737731667366,0.40508666,105600.0,105590.0,0.00028961]
[1737731668207,0.40179229,105600.0,105590.0,0.00028961]
[1737731668367,0.41179229,105600.0,105590.0,0.00028961]
[1737731668766,0.40179229,105600.0,105590.0,0.00028961]
[1737731671909,0.42068062,105600.0,105590.0,0.00028961]
[1737731673984,0.49168062,105600.0,105590.0,0.00028961]
[1737731674191,0.63522791,105600.0,105590.0,1e-08]
[1737731674426,0.142099,105560.0,105550.0,0.1253417]
[1737731674632,0.142099,105560.0,105550.0,0.12548888]
[1737731675250,0.142099,105560.0,105550.0,0.07998888]
[1737731675468,0.142099,105560.0,105550.0,0.22210088]
[1737731675677,0.142099,105560.0,105550.0,0.07998888]
[1737731680597,0.23944629,105560.0,105550.0,0.07998888]
[1737731681302,0.38944629,105560.0,105550.0,0.07998888]
[1737731681629,0.39875589,105560.0,105550.0,0.07998888]
[1737731682745,0.3014086,105560.0,105550.0,0.22210088]
[1737731683872,0.0093096,105560.0,105550.0,0.22210088]
[1737731684056,0.533317,105580.0,105560.0,0.331554]
[1737731684257,0.45077486,105580.0,105560.0,0.191299]
[1737731684454,0.142085,105570.0,105560.0,0.191299]
[1737731684672,0.15,105570.0,105560.0,0.380764]
[1737731684871,0.142085,105570.0,105560.0,0.0492]
[1737731685304,0.64021886,105580.0,105570.0,0.082]
[1737731685305,0.41134486,105580.0,105570.0,0.082]
[1737731685510,0.41134486,105580.0,105570.0,0.224085]
[1737731686306,0.00955257,105580.0,105570.0,0.224085]
[1737731686594,1.843838,105590.0,105570.0,0.224085]
[1737731686794,0.331456,105600.0,105590.0,0.0751]
[1737731686913,0.331456,105600.0,105590.0,0.217158]
[1737731687336,1.831456,105600.0,105590.0,0.217158]
[1737731687578,1.981456,105600.0,105590.0,0.217158]
[1737731688028,1.5,105600.0,105590.0,0.217158]
[1737731688234,0.533177,105610.0,105590.0,0.217158]
[1737731688438,0.81991229,105610.0,105590.0,0.40656]
[1737731688638,1.642045,105600.0,105590.0,0.0751]
[1737731688892,1.73939229,105600.0,105590.0,0.0751]
[1737731689156,0.331471,105590.0,105580.0,0.0769]
[1737731689373,0.57881829,105590.0,105580.0,0.07704718]
[1737731689581,0.57881829,105590.0,105580.0,0.00014718]
[1737731690724,0.63541829,105590.0,105580.0,1.8e-07]
[1737731691040,0.292085,105570.0,105560.0,0.0001421]
[1737731691252,0.38943229,105570.0,105560.0,0.0001421]
[1737731691858,0.49677958,105570.0,105560.0,0.0001421]
[1737731692052,0.49677958,105570.0,105550.0,0.0001417]
[1737731692053,0.292099,105560.0,105550.0,0.0001417]
[1737731692250,0.38944629,105560.0,105550.0,0.0001417]
[1737731692858,0.43464629,105560.0,105550.0,0.0001417]
[1737731695589,0.45392783,105560.0,105550.0,0.0001417]
[1737731696796,0.40872783,105560.0,105550.0,0.0001417]
[1737731698218,0.23944629,105560.0,105550.0,0.1241417]
[1737731698594,0.54906684,105570.0,105550.0,0.2662537]
[1737731698806,0.45695113,105570.0,105560.0,0.142099]
[1737731699005,0.17014484,105570.0,105560.0,0.142099]
[1737731699845,0.69904684,105570.0,105550.0,0.66514737]
[1737731700254,0.55695184,105570.0,105550.0,0.47567637]
[1737731700488,0.142099,105560.0,105550.0,0.47567637]
[1737731700704,0.142099,105560.0,105550.0,0.28620637]
[1737731700907,0.79639513,105570.0,105550.0,0.47568137]
[1737731701104,0.15975733,105560.0,105550.0,0.47568137]
[1737731701643,0.15975733,105560.0,105550.0,0.14409437]
[1737731701884,0.01765833,105560.0,105550.0,0.28620637]
[1737731702087,0.00944292,105570.0,105560.0,0.142099]
[1737731702306,0.142085,105570.0,105560.0,0.221999]
[1737731703294,0.580636,105580.0,105560.0,0.411454]
[1737731703295,0.533273,105580.0,105560.0,0.411454]
[1737731703517,0.63062029,105580.0,105560.0,0.411454]
[1737731703718,0.142085,105570.0,105560.0,0.221999]
[1737731704291,2.14014262,105580.0,105560.0,0.60092]
[1737731704822,2.14014262,105580.0,105560.0,0.60091]
[1737731704981,0.01765957,105570.0,105560.0,0.411454]
[1737731705413,0.01765957,105570.0,105560.0,0.43140667]
[1737731705994,0.15974457,105570.0,105560.0,0.411454]
[1737731706596,0.142085,105570.0,105560.0,0.411454]
[1737731706815,0.142085,105570.0,105560.0,0.221999]
[1737731707203,0.142085,105570.0,105560.0,0.24195167]
[1737731707491,0.142085,105570.0,105560.0,0.221999]
[1737731708550,0.142085,105570.0,105560.0,0.0799]
[1737731708834,0.23943229,105570.0,105560.0,0.0799]
[1737731709270,0.23843229,105570.0,105560.0,0.0799]
[1737731709444,1.73843229,105570.0,105560.0,0.0799]
[1737731711104,0.141085,105570.0,105560.0,0.221999]
[1737731711306,0.141085,105570.0,105560.0,0.0799]
[1737731711479,0.23843229,105570.0,105560.0,0.0799]
[1737731711695,0.23843229,105570.0,105560.0,0.080042]
[1737731711925,0.2387305,105570.0,105560.0,0.080042]
[1737731712126,0.24819498,105570.0,105560.0,0.080042]
[1737731715507,0.39819498,105570.0,105560.0,0.000142]
[1737731715764,0.43202083,105570.0,105560.0,0.000142]
[1737731715945,0.39819498,105570.0,105560.0,0.000142]
[1737731718033,0.30590998,105570.0,105550.0,0.0001417]
[1737731718285,0.30590998,105570.0,105540.0,0.0163577]
[1737731718286,0.292112,105550.0,105540.0,0.0163577]
[1737731718446,0.38945929,105550.0,105540.0,0.01650486]
[1737731719266,0.39945929,105550.0,105540.0,0.01650486]
[1737731719846,0.39945929,105550.0,105540.0,0.01160923]
[1737731720855,0.292139,105530.0,105520.0,1e-07]
[1737731721061,0.40176629,105530.0,105520.0,1e-07]
[1737731721911,0.302153,105520.0,105510.0,2e-07]
[1737731722125,0.292166,105510.0,105500.0,6e-05]
[1737731722338,0.39951329,105510.0,105500.0,6e-05]
[1737731722555,0.44403074,105510.0,105500.0,6e-05]
[1737731722771,0.44881329,105510.0,105500.0,6e-05]
[1737731722976,0.29218,105500.0,105490.0,0.0003421]
[1737731723183,0.38952729,105500.0,105490.0,0.0003421]
[1737731723367,0.41516478,105500.0,105490.0,0.0003421]
[1737731723630,0.41531213,105500.0,105490.0,0.0003421]